bitfinex-derivatives/quotes_BNBF0:USTF0_20250413
["timestamp","ask_amount","ask_price","bid_price","bid_amount"]
[1744575858413,1.51025406,584.07,583.87,1.016]
[1744575858712,0.225,584.29,583.87,1.016]
[1744575858908,2.15750783,584.28,583.87,1.016]
[1744575859204,2.15750783,584.27,583.87,1.016]
[1744575859409,2.15750783,584.26,583.87,1.016]
[1744575859610,2.15750783,584.25,583.87,1.016]
[1744575859906,2.15750783,584.24,583.87,1.016]
[1744575860207,2.15750783,584.23,583.87,1.016]
[1744575860410,2.15750783,584.22,583.87,1.016]
[1744575860712,2.15750783,584.21,583.87,1.016]
[1744575861012,2.15750783,584.2,583.87,1.016]
[1744575861211,2.15750783,584.19,583.87,1.016]
[1744575861408,2.15750783,584.18,583.87,1.016]
[1744575861712,2.15750783,584.17,583.87,1.016]
[1744575861906,2.15750783,584.16,583.87,1.016]
[1744575862108,2.15750783,584.15,583.87,1.016]
[1744575862306,2.15750783,584.14,583.87,1.016]
[1744575862613,2.15750783,584.13,583.87,1.016]
[1744575862814,2.15750783,584.12,583.87,1.016]
[1744575863114,2.15788392,584.11,583.87,1.016]
[1744575863314,1.51089207,584.1,583.87,1.016]
[1744575863514,1.51089207,584.09,583.87,1.016]
[1744575863712,0.225,584.29,583.87,1.016]
[1744575863908,2.15851644,584.28,583.87,1.016]
[1744575864212,2.15851644,584.27,583.87,1.016]
[1744575864409,2.15851644,584.26,583.87,1.016]
[1744575864610,2.15851644,584.25,583.87,1.016]
[1744575864809,2.15851644,584.24,583.87,1.016]
[1744575865013,2.15851644,584.23,583.87,1.016]
[1744575865314,2.15851644,584.22,583.87,1.016]
[1744575865513,2.15851644,584.21,583.87,1.016]
[1744575865710,2.15851644,584.2,583.87,1.016]
[1744575865915,2.15851644,584.19,583.87,1.016]
[1744575866116,2.15851644,584.18,583.86,0.935]
[1744575866311,2.15851644,584.17,583.86,0.935]
[1744575866511,2.15851644,584.16,583.86,0.935]
[1744575866712,1.51160488,584.15,583.86,0.935]
[1744575866915,0.34217865,584.49,583.86,0.935]
[1744575867114,2.1583561,584.48,583.86,0.935]
[1744575867316,2.1583561,584.47,583.86,0.935]
[1744575867516,2.1583561,584.46,583.86,0.935]
[1744575867718,2.15810898,584.45,583.86,0.935]
[1744575867918,2.15810898,584.44,583.86,0.935]
[1744575868118,2.15810898,584.43,583.86,0.935]
[1744575868418,2.15810898,584.42,583.86,0.935]
[1744575868613,2.15810898,584.41,583.87,0.31451407]
[1744575868818,2.15810898,584.4,583.83,0.954]
[1744575869019,2.15810898,584.39,583.88,0.89]
[1744575869213,2.15810898,584.38,583.88,0.89]
[1744575869416,2.15810898,584.37,583.88,0.89]
[1744575869616,2.15810898,584.36,583.88,0.89]
[1744575869815,2.15810898,584.35,583.88,0.89]
[1744575870018,2.15810898,584.34,583.88,0.89]
[1744575870217,2.15810898,584.33,583.88,0.89]
[1744575870418,2.15810898,584.32,583.88,0.89]
[1744575870719,2.15810898,584.31,583.88,0.89]
[1744575870917,2.15810898,584.3,583.88,0.89]
[1744575871112,2.15810898,584.29,583.88,0.89]
[1744575871319,2.15810898,584.28,583.88,1.906]
[1744575871518,2.15810898,584.27,583.89,0.31452688]
[1744575871720,2.15810898,584.26,583.89,0.31452688]
[1744575871920,2.15810898,584.25,583.89,0.31452688]
[1744575872117,2.15810898,584.24,583.89,0.31452688]
[1744575872320,2.15810898,584.23,583.89,0.31452688]
[1744575872521,2.15810898,584.22,583.89,0.31452688]
[1744575872818,2.15810898,584.21,583.88,1.906]
[1744575873119,1.51124789,584.2,583.89,0.31452314]
[1744575873325,1.51124789,584.19,583.89,0.31452314]
[1744575873524,1.50977547,584.18,583.89,0.31452314]
[1744575873818,0.225,584.33,583.89,0.31452314]
[1744575874025,2.15571882,584.32,583.89,0.31452314]
[1744575874222,2.15571882,584.31,583.89,0.31452314]
[1744575874420,2.15571882,584.3,583.88,1.906]
[1744575874619,1.509654,584.29,583.89,0.31449113]
[1744575874820,1.509654,584.28,583.89,0.31449113]
[1744575875119,0.225,584.33,583.89,0.31449113]
[1744575875317,2.15440059,584.32,583.89,0.31449113]
[1744575875621,1.50873328,584.31,583.89,0.31449113]
[1744575875822,1.50873328,584.3,583.89,0.31449113]
[1744575876121,0.225,584.33,583.89,0.31449113]
[1744575877823,0.225,584.33,583.9,0.657]
[1744575878022,0.225,584.33,583.91,0.31449113]
[1744575882626,0.225,584.33,583.92,0.31445847]
[1744575882824,0.225,584.33,583.91,0.31445847]
[1744575883020,0.225,584.33,583.92,0.31445847]
[1744575883325,0.225,584.33,583.93,0.31445847]
[1744575883626,0.225,584.33,583.9,0.657]
[1744575884026,0.225,584.33,583.91,0.31445879]
[1744575884227,0.225,584.33,583.9,0.657]
[1744575884525,0.225,584.33,583.91,0.31445928]
[1744575885227,0.225,584.33,583.9,0.657]
[1744575885428,0.225,584.33,583.92,0.31444183]
[1744575885624,0.2150993,584.33,583.93,0.31444183]
[1744575885823,2.15113342,585.0,583.91,0.31444183]
[1744575886024,2.8034573,584.99,583.92,0.31444183]
[1744575886225,2.80346315,584.98,583.92,0.31444183]
[1744575886428,2.46157112,584.97,583.92,0.31444183]
[1744575886722,2.46157112,584.96,583.92,1.34044183]
[1744575886921,2.15113342,584.95,583.93,0.31444183]
[1744575887121,2.15113342,584.94,583.93,0.31444183]
[1744575887321,2.15113342,584.93,583.93,0.31444183]
[1744575887527,2.15113342,584.92,583.94,0.31440747]
[1744575887726,2.15113342,584.92,583.93,0.31440747]
[1744575888028,2.15113342,584.91,583.94,0.31440747]
[1744575888227,2.15113342,584.9,583.93,0.31440747]
[1744575888427,2.15113342,584.89,583.95,0.31440747]
[1744575888627,2.15113342,584.88,583.96,0.31440747]
[1744575888824,2.15113342,584.87,583.93,0.31440747]
[1744575889024,2.15113342,584.86,583.93,0.31440747]
[1744575889227,2.15113342,584.85,583.93,0.31440747]
[1744575889424,2.15113342,584.84,583.93,0.31440747]
[1744575889625,0.34189203,584.98,583.93,0.31440747]
[1744575889626,2.15113342,584.83,583.93,0.31440747]
[1744575889924,2.15113342,584.82,583.93,0.31440747]
[1744575890133,2.15113342,584.81,583.93,0.31440747]
[1744575890329,2.15113342,584.8,583.93,0.31440747]
[1744575890528,2.15113342,584.79,583.93,0.31440747]
[1744575890729,2.15113342,584.78,583.93,0.31440747]
[1744575890927,2.15113342,584.77,583.93,0.31440747]
[1744575891130,2.15113342,584.76,583.93,0.31440747]
[1744575891326,2.15113342,584.75,583.93,0.31440747]
[1744575891532,2.15113342,584.74,583.93,0.31440747]
[1744575891732,2.15113342,584.73,583.93,0.31440747]
[1744575891932,2.15113342,584.72,583.93,0.31440747]
[1744575892132,2.15113342,584.71,583.93,0.31440747]
[1744575892433,2.15113342,584.7,583.93,0.31440747]
[1744575892728,2.15113342,584.69,583.93,0.31440747]
[1744575893028,2.15113342,584.68,583.93,0.31440747]
[1744575893232,0.34189203,584.98,583.93,0.31440747]
[1744575893233,2.15113342,584.67,583.93,0.31440747]
[1744575893432,2.15113342,584.66,583.93,0.31440747]
[1744575893635,2.15113342,584.65,583.93,0.31440747]
[1744575893932,0.34189203,584.98,583.93,0.31440747]
[1744575893933,2.15113342,584.64,583.93,0.31440747]
[1744575894230,2.15113342,584.63,583.93,1.19540747]
[1744575894433,2.15113342,584.62,583.94,0.31440747]
[1744575894629,2.15113342,584.61,583.94,0.31440747]
[1744575894828,2.15113342,584.6,583.94,0.31440747]
[1744575895033,2.15113342,584.59,583.94,0.31440747]
[1744575895231,0.34189203,584.98,583.94,0.31440747]
[1744575895232,2.15113342,584.58,583.94,0.31440747]
[1744575895433,2.15113342,584.57,583.94,0.31440747]
[1744575895630,2.15113342,584.56,583.95,0.31442408]
[1744575895837,2.15113342,584.55,583.94,0.31442408]
[1744575896028,2.15113342,584.54,583.95,0.31442408]
[1744575896233,2.15113342,584.53,583.95,0.31442408]
[1744575896434,2.15113342,584.52,583.96,0.31442408]
[1744575896628,2.15113342,584.51,583.94,0.31442408]
[1744575896834,2.15113342,584.5,583.95,0.31442408]
[1744575897029,1.50611235,584.49,583.96,0.31442408]
[1744575897232,1.50611235,584.48,583.94,0.31442408]
[1744575897432,1.50611235,584.47,583.94,0.31442408]
[1744575897628,0.34189203,584.98,583.94,0.31442408]
[1744575897827,2.45814162,584.97,583.94,0.31442408]
[1744575898034,2.45814162,584.96,583.94,0.31442408]
[1744575898236,2.14723111,584.95,583.94,0.31442408]
[1744575898432,2.14723111,584.94,583.94,0.31442408]
[1744575898633,2.14723111,584.93,583.94,0.31442408]
[1744575898838,2.14723111,584.92,583.94,0.31442408]
[1744575899037,2.14723111,584.91,583.94,0.31442408]
[1744575899237,2.14723111,584.9,583.94,0.31442408]
[1744575899437,2.14723111,584.89,583.94,0.31442408]
[1744575899637,0.34189203,584.98,583.94,0.31442408]
[1744575899638,2.14723111,584.88,583.94,0.31442408]
[1744575899835,2.14723111,584.87,583.94,0.31442408]
[1744575900043,2.14723111,584.86,583.94,0.31442408]
[1744575900240,2.14723111,584.85,583.94,0.31442408]
[1744575900441,2.14723111,584.84,583.94,0.31442408]
[1744575900641,2.14723111,584.83,583.94,0.31442408]
[1744575900840,2.14723111,584.82,583.94,0.31442408]
[1744575901036,2.14723111,584.81,583.94,0.31442408]
[1744575901342,2.14723111,584.8,583.93,0.881]
[1744575901641,2.14723111,584.79,583.93,0.881]
[1744575901838,2.14723111,584.78,583.93,0.881]
[1744575902036,2.14723111,584.77,583.93,0.881]
[1744575902236,0.34189203,584.98,583.93,0.881]
[1744575902237,2.14723111,584.76,583.93,0.881]
[1744575902436,2.14723111,584.75,583.93,0.881]
[1744575902739,2.14723111,584.74,583.93,0.881]
[1744575903040,2.14723111,584.73,583.93,0.881]
[1744575903238,2.14723111,584.72,583.93,0.881]
[1744575903440,2.14723111,584.71,583.93,0.881]
[1744575903638,2.14723111,584.7,583.93,1.604]
[1744575903837,2.14723111,584.69,583.93,1.604]
[1744575904041,2.14723111,584.68,583.93,1.604]
[1744575904238,2.14723111,584.67,583.93,1.604]
[1744575904540,2.14723111,584.66,583.93,1.604]
[1744575904842,2.14723111,584.65,583.93,1.604]
[1744575905039,2.14723111,584.64,583.93,1.604]
[1744575905243,2.14723111,584.63,583.93,1.604]
[1744575905547,2.14723111,584.62,583.94,0.3144539]
[1744575905746,2.14723111,584.61,583.94,0.3144539]
[1744575905944,2.14723111,584.6,583.94,0.3144539]
[1744575906148,2.14723111,584.59,583.94,0.3144539]
[1744575906344,2.14723111,584.58,583.94,0.3144539]
[1744575906546,2.14723111,584.57,583.94,0.3144539]
[1744575906750,2.14723111,584.56,583.94,0.3144539]
[1744575906948,2.14723111,584.55,583.94,0.3144539]
[1744575907150,2.14723111,584.54,583.95,0.971]
[1744575907349,2.14723111,584.53,583.96,0.3144539]
[1744575907545,2.14723111,584.52,583.96,0.3144539]
[1744575907845,2.14723111,584.51,583.96,0.3144539]
[1744575908050,2.14723111,584.5,583.96,0.3144539]
[1744575908251,2.14723111,584.49,583.96,0.3144539]
[1744575908449,2.14723111,584.48,583.96,0.3144539]
[1744575908650,2.14723111,584.47,583.96,0.3144539]
[1744575908850,2.14723111,584.46,583.96,0.3144539]
[1744575909044,2.14723111,584.45,583.96,0.3144539]
[1744575909251,2.14843832,584.44,583.96,0.3144539]
[1744575909452,1.50372104,584.43,583.96,0.3144539]
[1744575909654,1.50372104,584.42,583.97,0.878]
[1744575909852,1.50654473,584.41,583.97,0.878]
[1744575910151,1.50683981,584.4,583.97,0.878]
[1744575910353,0.34189203,584.98,583.97,0.878]
[1744575910552,2.46261414,584.97,583.97,0.878]
[1744575910753,2.46261414,584.96,583.97,0.878]
[1744575910952,2.46261414,584.95,583.97,0.878]
[1744575911153,2.1516882,584.94,583.97,0.878]
[1744575911451,2.1516882,584.93,583.97,0.878]
[1744575911652,2.1516882,584.92,583.97,0.878]
[1744575911852,2.1516882,584.91,583.97,0.878]
[1744575912053,2.1516882,584.9,583.97,0.878]
[1744575912246,2.1516882,584.89,583.97,0.878]
[1744575912448,2.1516882,584.88,583.97,0.878]
[1744575912651,2.1516882,584.87,583.97,0.878]
[1744575912848,2.1516882,584.86,583.97,0.878]
[1744575913047,2.1516882,584.85,583.97,0.878]
[1744575913249,2.1516882,584.84,583.97,0.878]
[1744575913451,2.1516882,584.83,583.97,0.878]
[1744575913652,2.1516882,584.82,583.98,1.004]
[1744575913852,2.1516882,584.81,583.98,1.004]
[1744575914054,2.1516882,584.8,583.98,1.004]
[1744575914348,2.1516882,584.79,583.98,1.004]
[1744575914548,2.1516882,584.78,583.98,1.004]
[1744575914749,2.1516882,584.77,583.98,1.004]
[1744575915048,2.1516882,584.76,583.98,1.004]
[1744575915253,2.1516882,584.75,583.99,0.698]
[1744575915452,2.1516882,584.74,583.99,0.698]
[1744575915649,2.1516882,584.73,583.99,0.698]
[1744575915849,2.1516882,584.72,583.99,0.698]
[1744575916054,2.1516882,584.71,583.99,0.698]
[1744575916249,2.1516882,584.7,583.99,0.698]
[1744575916451,2.1516882,584.69,583.99,0.698]
[1744575916654,2.1516882,584.68,583.99,0.698]
[1744575916855,2.1516882,584.67,583.99,0.698]
[1744575917051,2.15477667,584.66,583.99,0.698]
[1744575917258,2.15477667,584.65,583.99,0.698]
[1744575917457,2.15477667,584.64,583.99,0.698]
[1744575917659,2.15477667,584.63,583.99,0.698]
[1744575917959,2.15477667,584.62,583.99,0.698]
[1744575918158,2.15477667,584.61,583.99,0.698]
[1744575918458,2.15477667,584.6,583.99,0.698]
[1744575918658,2.15498297,584.59,583.99,0.698]
[1744575918859,2.15498297,584.58,583.99,0.698]
[1744575919055,2.15498297,584.57,583.99,0.698]
[1744575919254,2.15498297,584.56,583.99,0.698]
[1744575919459,2.15498297,584.55,583.99,0.698]
[1744575919759,2.15498297,584.54,583.99,0.698]
[1744575919959,2.15498297,584.53,583.99,0.698]
[1744575920255,2.15498297,584.52,583.99,0.698]
[1744575920558,2.15498297,584.51,583.99,0.698]
[1744575920759,2.15498297,584.5,583.99,0.698]
[1744575920958,2.15498297,584.49,583.99,0.698]
[1744575921159,2.15498297,584.48,583.99,0.698]
[1744575921458,2.15498297,584.47,583.99,0.698]
[1744575921655,2.15498297,584.46,583.99,0.698]
[1744575921954,2.15498297,584.45,583.99,0.698]
[1744575922158,2.15498297,584.44,583.99,0.698]
[1744575922359,2.15498297,584.43,583.99,0.698]
[1744575922560,2.15498297,584.42,583.99,0.698]
[1744575922760,2.15498297,584.41,583.99,0.698]
[1744575922961,2.15498297,584.4,583.99,0.698]
[1744575923164,2.15498297,584.39,583.99,0.698]
[1744575923462,0.215,584.94,583.99,0.698]
[1744575923463,2.15498297,584.38,583.99,0.698]
[1744575923761,2.15498297,584.37,583.99,0.698]
[1744575923959,2.15498297,584.36,583.99,0.698]
[1744575924159,2.15498297,584.35,583.99,0.698]
[1744575924457,2.15498297,584.34,583.99,0.698]
[1744575924656,2.15498297,584.33,583.99,0.698]
[1744575924858,2.15498297,584.32,583.99,0.698]
[1744575925059,2.15498297,584.31,583.99,0.698]
[1744575925356,2.15498297,584.3,583.99,0.698]
[1744575925559,2.15498297,584.29,583.99,0.698]
[1744575925758,2.15498297,584.28,583.99,0.698]
[1744575925958,2.15498297,584.27,583.99,0.698]
[1744575926158,2.15498297,584.26,583.99,0.698]
[1744575926359,2.15498297,584.25,583.98,1.004]
[1744575926659,2.15498297,584.24,583.98,1.004]
[1744575926857,1.50900061,584.23,583.98,1.004]
[1744575927057,1.50900061,584.22,583.98,1.004]
[1744575927261,1.51210283,584.21,583.98,1.004]
[1744575927463,0.215,584.94,583.98,1.004]
[1744575927659,2.81211484,584.93,583.98,1.004]
[1744575927863,2.81212069,584.92,583.98,1.004]
[1744575928062,2.81212653,584.91,583.98,1.004]
[1744575928362,2.81213238,584.9,583.98,1.004]
[1744575928563,2.81213822,584.89,583.98,1.004]
[1744575928761,0.215,584.94,583.98,1.004]
[1744575928762,2.50116804,584.88,583.99,0.839]
[1744575928964,2.81215038,584.87,583.99,0.839]
[1744575929266,2.81215622,584.86,583.99,0.839]
[1744575929460,2.50118558,584.85,583.99,0.839]
[1744575929660,2.81216792,584.84,583.99,0.839]
[1744575929965,2.81217377,584.83,583.99,0.839]
[1744575930166,2.47019405,584.82,583.99,0.839]
[1744575930362,2.15921756,584.81,583.99,0.839]
[1744575930666,2.47019409,584.8,583.99,0.839]
[1744575930867,2.47019409,584.79,583.99,0.839]
[1744575931162,2.15921756,584.78,583.99,0.839]
[1744575931366,2.15921756,584.77,583.99,0.839]
[1744575931560,2.15921756,584.76,583.99,0.839]
[1744575931761,2.15921756,584.75,583.99,0.839]
[1744575932067,0.34197972,584.83,583.99,0.839]
[1744575932068,2.15921756,584.74,583.99,0.839]
[1744575932263,2.15921756,584.73,583.99,0.839]
[1744575932469,2.15921756,584.72,583.99,0.839]
[1744575932670,2.15921756,584.71,583.99,0.839]
[1744575932968,2.15921756,584.7,583.99,0.839]
[1744575933169,2.15921756,584.69,583.99,0.839]
[1744575933365,2.15921756,584.68,583.99,0.839]
[1744575933571,2.15921756,584.67,583.99,0.839]
[1744575933769,2.15921756,584.66,583.99,0.839]
[1744575933969,2.15921756,584.65,583.99,0.839]
[1744575934169,2.15921756,584.64,583.99,0.839]
[1744575934370,2.15921756,584.63,583.99,0.839]
[1744575934569,2.15921756,584.62,583.99,0.839]
[1744575934769,2.15921756,584.61,583.99,0.839]
[1744575934970,2.15921756,584.6,583.99,0.839]
[1744575935170,2.15921756,584.59,583.99,0.839]
[1744575935371,2.16018547,584.58,583.99,0.839]
[1744575935668,2.16018547,584.57,583.99,0.839]
[1744575935871,2.16018547,584.56,583.99,0.839]
[1744575936073,2.16018547,584.55,583.99,0.839]
[1744575936269,2.16018547,584.54,583.99,0.839]
[1744575936471,2.16018547,584.53,583.99,0.839]
[1744575936674,2.16018547,584.52,583.99,0.839]
[1744575936970,0.34197972,584.83,583.99,0.839]
[1744575936971,2.16018547,584.51,583.99,0.839]
[1744575937174,2.16018547,584.5,583.99,0.839]
[1744575937473,2.16018547,584.49,583.99,0.839]
[1744575937675,2.16018547,584.48,583.99,0.839]
[1744575937868,2.16018547,584.47,583.99,0.839]
[1744575938072,2.16018547,584.46,583.99,0.839]
[1744575938273,2.16018547,584.45,583.99,0.839]
[1744575938469,2.16018547,584.44,583.99,0.839]
[1744575938674,0.34197972,584.83,583.99,0.839]
[1744575938675,2.16018547,584.43,583.99,0.839]
[1744575938868,2.16018547,584.42,583.99,0.839]
[1744575939074,2.16018547,584.41,583.99,0.839]
[1744575939374,2.16018547,584.4,583.99,0.839]
[1744575939570,2.16018547,584.39,583.99,0.839]
[1744575939771,2.16018547,584.38,583.99,0.839]
[1744575939969,2.16018547,584.37,583.99,0.839]
[1744575940174,2.16018547,584.36,583.99,0.839]
[1744575940374,2.16018547,584.35,583.99,0.839]
[1744575940570,2.16018547,584.34,583.99,0.839]
[1744575940770,2.16018547,584.33,583.99,0.839]
[1744575940974,2.16018547,584.32,584.0,0.31447221]
[1744575941174,2.16018547,584.31,584.0,0.31447221]
[1744575941376,2.16018547,584.3,584.0,0.31447221]
[1744575941675,1.51307234,584.29,584.0,0.31447221]
[1744575941875,1.51307234,584.28,584.0,0.31447221]
[1744575942074,1.51307234,584.27,584.0,0.31447221]
[1744575942375,0.34197972,584.83,584.0,0.31447221]
[1744575942576,2.47084256,584.82,584.0,0.31447221]
[1744575942871,2.15991073,584.81,584.0,0.31447221]
[1744575943075,2.15991073,584.8,584.0,0.31447221]
[1744575943271,2.15991073,584.79,584.0,0.31447221]
[1744575943475,2.15990969,584.78,584.0,0.31447221]
[1744575943676,2.15990969,584.77,584.0,0.31447221]
[1744575943872,2.15990969,584.76,584.0,0.31447221]
[1744575944077,2.15990969,584.75,584.0,0.31447221]
[1744575944272,2.15990969,584.74,584.0,0.31447221]
[1744575944477,2.15990969,584.73,584.0,0.31447221]
[1744575944673,2.15990969,584.72,584.0,0.31447221]
[1744575944872,2.15990969,584.71,584.0,0.31447221]
[1744575945073,2.15990969,584.7,584.01,1.005]
[1744575945274,0.34197972,584.83,584.02,0.31447221]
[1744575945275,2.15990969,584.69,584.02,0.31447221]
[1744575945475,2.15990969,584.68,584.02,0.31447221]
[1744575945673,2.15990969,584.67,584.02,0.31447221]
[1744575945873,2.15990969,584.66,584.02,0.31447221]
[1744575946074,2.15990969,584.65,584.01,1.005]
[1744575946274,2.15990969,584.64,584.02,0.31442996]
[1744575946480,2.15990969,584.63,584.02,0.31442996]
[1744575946677,2.15990969,584.62,584.02,0.31442996]
[1744575946873,2.15990969,584.61,584.02,0.31442996]
[1744575947074,2.15990969,584.6,584.02,1.12242996]
[1744575947278,2.15990969,584.59,584.02,0.808]
[1744575947477,2.15990969,584.58,584.02,0.808]
[1744575947677,2.15990969,584.57,584.02,0.808]
[1744575947874,2.15990969,584.56,584.02,0.808]
[1744575948074,2.15990969,584.55,584.02,0.808]
[1744575948274,2.15990969,584.54,584.02,0.808]
[1744575948482,2.15990969,584.53,584.02,0.808]
[1744575948676,2.15990969,584.52,584.02,0.808]
[1744575948877,0.34197972,584.83,584.02,0.808]
[1744575948878,2.15990969,584.51,584.02,0.808]
[1744575949174,0.64731256,584.5,584.02,0.808]
[1744575949375,2.15942172,584.49,584.02,1.759]
[1744575949580,2.15942172,584.48,584.02,1.759]
[1744575949881,2.15942172,584.47,584.02,1.759]
[1744575950076,2.15919794,584.46,584.02,1.759]
[1744575950279,2.15919794,584.45,584.02,1.759]
[1744575950480,1.51210978,584.44,584.02,1.759]
[1744575950781,1.51210978,584.43,584.02,2.811]
[1744575950981,1.51210978,584.42,584.02,2.811]
[1744575951183,0.34197972,584.83,584.02,2.811]
[1744575951483,2.15859196,584.82,584.02,2.811]
[1744575951682,2.15859196,584.81,584.02,2.811]
[1744575951979,2.15859196,584.8,584.02,2.811]
[1744575952179,2.15859196,584.79,584.02,2.811]
[1744575952378,2.15859196,584.78,584.02,2.811]
[1744575952582,2.15859196,584.77,584.02,2.811]
[1744575952780,2.15859196,584.76,584.02,3.685]
[1744575952978,2.15859196,584.75,584.02,3.685]
[1744575953181,2.15859196,584.74,584.02,3.685]
[1744575953384,2.15838263,584.73,584.02,3.685]
[1744575953585,2.15838263,584.72,584.02,3.685]
[1744575953779,2.15838263,584.71,584.02,3.685]
[1744575953983,2.15838263,584.7,584.02,3.685]
[1744575954180,0.215,584.73,584.02,3.685]
[1744575954181,2.15838263,584.69,584.02,3.685]
[1744575954381,2.15838263,584.68,584.02,3.685]
[1744575954588,2.15763632,584.67,584.02,3.685]
[1744575954885,2.15763632,584.66,584.02,3.685]
[1744575955083,2.15763632,584.65,584.02,3.685]
[1744575955284,2.15763632,584.64,584.02,3.685]
[1744575955480,2.15763632,584.63,584.02,3.685]
[1744575955686,2.15763632,584.62,584.02,3.685]
[1744575955886,0.215,584.73,584.02,3.685]
[1744575955887,2.15763632,584.61,584.02,3.685]
[1744575956085,2.15763632,584.6,584.02,3.685]
[1744575956285,2.15763632,584.59,584.02,3.685]
[1744575956484,2.15763632,584.58,584.02,3.685]
[1744575956687,2.15763632,584.57,584.02,3.685]
[1744575956887,2.15763632,584.56,584.02,3.685]
[1744575957087,2.15763632,584.55,584.02,3.685]
[1744575957286,2.15763632,584.54,584.02,3.685]
[1744575957490,2.15763632,584.53,584.03,0.31436029]
[1744575957790,2.15697529,584.52,584.03,0.31436029]
[1744575958086,2.15697529,584.51,584.03,0.31436029]
[1744575958287,1.51027905,584.5,584.03,0.31436029]
[1744575958489,0.215,584.73,584.03,0.31436029]
[1744575958689,2.1561894,584.72,584.03,0.31436029]
[1744575958889,2.1561894,584.71,584.03,0.31436029]
[1744575959089,2.1561894,584.7,584.03,0.31436029]
[1744575959289,2.1561894,584.69,584.03,0.31436029]
[1744575959489,2.1561894,584.68,584.03,0.31436029]
[1744575959691,2.1561894,584.67,584.03,0.31436029]
[1744575959992,2.1561894,584.66,584.03,0.31436029]
[1744575960193,2.1561894,584.65,584.03,0.31436029]
[1744575960494,2.1561894,584.64,584.03,0.31436029]
[1744575960693,2.1561894,584.63,584.03,0.31436029]
[1744575960988,2.1561894,584.62,584.03,0.31436029]
[1744575961190,2.1561894,584.61,584.03,0.31436029]
[1744575961393,2.1561894,584.6,584.02,3.98274637]
[1744575961692,2.1561894,584.59,584.03,0.31433504]
[1744575961885,2.1561894,584.58,584.03,0.31433504]
[1744575962087,2.1561894,584.57,584.03,0.31433504]
[1744575962287,1.51000781,584.56,584.03,0.31433504]
[1744575962486,1.51000781,584.55,584.03,0.31433504]
[1744575962788,1.50907899,584.54,584.03,0.31433504]
[1744575963090,0.215,584.73,584.03,0.31433504]
[1744575963289,2.15485822,584.72,584.03,0.31433504]
[1744575963492,2.15485822,584.71,584.03,0.31433504]
[1744575963693,2.15485822,584.7,584.03,0.31433504]
[1744575963889,2.15485822,584.69,584.03,0.31433504]
[1744575964091,2.15485822,584.68,584.03,0.31433504]
[1744575964293,2.15485822,584.67,584.03,0.31433504]
[1744575964490,2.15485822,584.66,584.02,2.93077312]
[1744575964692,2.15485822,584.65,584.03,0.3143446]
[1744575964890,2.15485822,584.64,584.03,0.3143446]
[1744575965090,2.15485822,584.63,584.03,0.3143446]
[1744575965294,2.15485822,584.62,584.03,1.1733446]
[1744575965495,2.15485822,584.61,584.04,0.3143446]
[1744575965796,2.15485822,584.6,584.04,0.3143446]
[1744575966097,2.15485822,584.59,584.03,0.859]
[1744575966298,2.15485822,584.58,584.04,0.31434339]
[1744575966598,2.15485822,584.57,584.04,0.31434339]
[1744575966896,2.15485822,584.56,584.04,0.31434339]
[1744575967097,2.15485822,584.55,584.04,0.31434339]
[1744575967298,2.15485822,584.54,584.04,0.31434339]
[1744575967498,2.15485822,584.53,584.04,0.31434339]
[1744575967696,2.15485822,584.52,584.03,0.859]
[1744575967897,2.15485822,584.51,584.03,0.859]
[1744575968193,2.15475154,584.5,584.03,0.859]
[1744575968399,2.15475154,584.49,584.03,0.859]
[1744575968598,2.15475154,584.48,584.03,0.859]
[1744575968800,2.15475154,584.47,584.03,0.859]
[1744575968996,2.15475154,584.46,584.03,0.859]
[1744575969196,2.15475154,584.45,584.03,0.859]
[1744575969398,2.15475154,584.44,584.03,0.859]
[1744575969604,2.15475154,584.43,584.03,0.859]
[1744575969803,2.15476956,584.42,584.03,0.859]
[1744575970102,0.29781772,585.45,584.03,0.859]
[1744575970103,1.50907647,584.41,584.03,0.859]
[1744575970298,2.15478442,584.4,584.03,0.859]
[1744575970499,2.15478442,584.39,584.03,0.859]